fUSD/lending_fUSD_20241123
["ID","MTS","AMOUNT","RATE_DAILY","PERIOD"]
[343121464,1732369838168,-1000.0,0.00046521,2]
[343121465,1732369838177,-1724.63,0.00046547,2]
[343121466,1732369838187,-8134.89,0.00046576,7]
[343121467,1732369838196,-8730.09,0.00046576,7]
[343121468,1732369838205,-447.2,0.00046576,7]
[343121469,1732369838214,-3727.43,0.00046594,2]
[343121470,1732369838223,-3095.27,0.00046675,2]
[343121471,1732369838233,-719.54,0.00046689,2]
[343121472,1732369838242,-500.0,0.00046797,2]
[343121473,1732369838253,-250.0,0.00046825,120]
[343121474,1732369838262,-699.91,0.00046829,2]
[343121475,1732369838272,-200.0,0.0004684,2]
[343121476,1732369838281,-248.0,0.00046882,2]
[343121477,1732369838291,-938.32,0.00046889,120]
[343121478,1732369838300,-3048.06078633,0.000469,15]
[343121479,1732369838308,-187.21,0.0004699,30]
[343121480,1732369838318,-156.01,0.0004699,30]
[343121481,1732369838327,-780.08,0.0004699,30]
[343121482,1732369838336,-166.37,0.00046994,2]
[343121483,1732369838346,-17946.0,0.00047,120]
[343121485,1732369838355,-650.0,0.00047,2]
[343121487,1732369838364,-155.43,0.00047089,2]
[343121489,1732369838374,-178.33,0.0004709,120]
[343121492,1732369838383,-151.0,0.00047096,120]
[343121495,1732369838392,-150.5,0.00047136,2]
[343121497,1732369838401,-5424.7,0.000473,7]
[343121499,1732369838410,-6763.79,0.000473,7]
[343121501,1732369838419,-2968.2265842,0.00047325,15]
[343121503,1732369838428,-1000.0,0.00047423,2]
[343121505,1732369838437,-1000.0,0.00047423,2]
[343121507,1732369838447,-1000.0,0.00047423,2]
[343121509,1732369838456,-161.88,0.00047425,2]
[343121511,1732369838465,-1780.65,0.00047441,2]
[343121513,1732369838474,-161.88,0.00047484,2]
[343121515,1732369838483,-253.436,0.00047497,2]
[343121517,1732369838494,-1500.0,0.00047522,2]
[343121519,1732369838508,-161.88,0.00047544,2]
[343121520,1732369838520,-147324.0,0.0004755,30]
[343121522,1732369838529,-506.64541891,0.00047573,10]
[343121523,1732369838538,-159.1514592,0.00047573,2]
[343121524,1732369838547,-500.0,0.00047573,10]
[343121525,1732369838557,-3458.562394,0.000476,2]
[343121526,1732369838566,-161.88,0.00047603,2]
[343121527,1732369838575,-161.88,0.00047662,2]
[343121528,1732369838585,-770.0,0.00047734,5]
[343121529,1732369838594,-1000.0,0.00047867,2]
[343121530,1732369838603,-3391.91,0.00047919,7]
[343121531,1732369838612,-321.13120002,0.00047954,2]
[343121532,1732369838621,-174.2,0.00047955,2]
[343121533,1732369838631,-6030.98742466,0.00048,120]
[343121534,1732369838640,-5930.74616792,0.00048,120]
[343121535,1732369838649,-1000.0,0.00048054,2]
[343121536,1732369838659,-1000.0,0.00048121,10]
[343121537,1732369838668,-6172.22,0.00048559,7]
[343121538,1732369838678,-191.98863144,0.00048581,24]
[343121539,1732369838688,-1000.0,0.0004868,2]
[343121540,1732369838698,-539.66775,0.00048681,120]
[343121541,1732369838708,-2918.09959,0.0004876,43]
[343121542,1732369838719,-1724.63,0.0004881,2]
[343121543,1732369838728,-1812.74963412,0.0004882,2]
[343121544,1732369838738,-2918.0996,0.0004885,44]
[343121545,1732369838747,-700.0,0.00049,2]
[343121546,1732369838759,-699.91,0.00049059,2]
[343121547,1732369838769,-1574.82580104,0.00049122,10]
[343121548,1732369838778,-2918.0996,0.0004916,45]
[343121549,1732369838787,-6740.37,0.00049297,7]
[343121550,1732369838797,-1000.0,0.00049299,30]
[343121551,1732369838806,-2918.0996,0.0004947,47]
[343121552,1732369838815,-150.5,0.00049528,2]
[343121553,1732369838824,-1000.0,0.00049575,2]
[343121554,1732369838834,-150.0,0.00049632,2]
[343121555,1732369838847,-432.27855768,0.0004966,7]
[343121556,1732369838856,-2918.0996,0.0004978,48]
[343121557,1732369838866,-2200.0,0.000498,18]
[343121558,1732369838875,-215.51,0.00049807,2]
[343121559,1732369838885,-215.51,0.0004982,2]
[343121560,1732369838895,-215.51,0.00049833,2]
[343121561,1732369838904,-215.51,0.00049846,2]
[343121562,1732369838914,-215.51,0.00049859,2]
[343121563,1732369838924,-215.51,0.00049872,2]
[343121564,1732369838935,-215.51,0.00049885,2]
[343121565,1732369838945,-215.51,0.00049898,2]
[343121566,1732369838955,-1717.28337596,0.000499,28]
[343121567,1732369838964,-4500.0,0.000499,18]
[343121568,1732369838973,-171.63015167,0.000499,26]
[343121569,1732369838983,-185.40768306,0.000499,28]
[343121570,1732369838993,-294.78713945,0.00049903,120]
[343121571,1732369839007,-215.51,0.00049911,2]
[343121572,1732369839017,-215.51,0.00049925,2]
[343121573,1732369839026,-215.51,0.00049938,2]
[343121574,1732369839036,-151.0,0.00049945,120]
[343121575,1732369839045,-215.51,0.00049951,2]
[343121576,1732369839055,-215.51,0.00049964,2]
[343121577,1732369839065,-159.1514592,0.00049973,2]
[343121578,1732369839075,-157.16048912,0.00049973,2]
[343121579,1732369839085,-159.1498624,0.00049973,2]
[343121580,1732369839095,-215.51,0.00049977,2]
[343121581,1732369839104,-214.62144587,0.0004999,7]
[343121582,1732369839113,-215.51,0.0004999,2]
[343121583,1732369839123,-162.89,0.00049999,15]
[343121584,1732369839133,-180.01679222,0.00049999,120]
[343121585,1732369839143,-9824.20513423,0.0005,120]
[343121586,1732369839153,-2000.0,0.0005,40]
[343121587,1732369839167,-284860.07624333,0.0005,2]
[343121591,1732369839668,-487.34950464,0.0005,2]
[343121592,1732369839680,-1196.435,0.0005,2]
[343121593,1732369839693,-776.99999978,0.0005,2]
[343121594,1732369839705,-2356.26685585,0.0005,2]
[343121595,1732369839718,-688.73472,0.0005,2]
[343121596,1732369839730,-853.475,0.0005,2]
[343121618,1732369842618,-1579.17037606,0.0005,2]
[343121619,1732369842697,-16502.86747386,0.0005,2]
[343121620,1732369842711,-23897.6775,0.0005,2]
[343121622,1732369842917,-0.64075237,0.0005,2]
[343121623,1732369842945,-500.0,0.00044985,120]
[343121624,1732369842955,-4373.1519692,0.00049966,2]
[343121625,1732369842964,-94383.02644223,0.0005,2]
[343121626,1732369842976,-49264.34461491,0.0005,2]
[343121627,1732369842991,-5993.63650705,0.0005,2]
[343121628,1732369843007,-475.03811417,0.0005,2]
[343121629,1732369843019,-1075.845845,0.0005,2]
[343121649,1732369845630,-500.0,0.00045646,2]
[343121650,1732369845640,-3020.04500821,0.0005,2]
[343121652,1732369846532,-9231.12096031,0.0005,2]
[343121653,1732369846547,-2206.83253236,0.0005,2]
[343121654,1732369846558,-1610.61038813,0.0005,2]
[343121655,1732369846573,-4296.34038001,0.0005,2]
[343121656,1732369846584,-306.25636798,0.0005,2]
[343121657,1732369846595,-683.35399078,0.0005,2]
[343121658,1732369846606,-1713.14999993,0.0005,2]
[343121659,1732369846618,-1421.89968246,0.0005,2]
[343121660,1732369960481,1418.0,0.00031,2]
[343121661,1732369961297,1276.0,0.00031,2]
[343121662,1732370026514,164.46,0.00039085,2]
[343121663,1732370104544,523.54,0.00026986,120]
[343121664,1732370110427,398.65,0.0004,2]
[343121665,1732370381143,250.0,0.00031,2]
[343121666,1732370382370,300.0,0.00033,2]
[343121667,1732370383462,350.0,0.00035,2]
[343121668,1732370384564,400.0,0.00037,2]
[343121669,1732370385691,450.0,0.00039,2]
[343121670,1732370490789,1935.25,0.0004,2]
[343121675,1732370742918,164.46,0.00037491,2]
[343121698,1732371031744,-168.76290368,0.00040895,120]
[343121699,1732371031754,-500.0,0.00040996,2]
[343121700,1732371031763,-500.0,0.00040996,2]
[343121701,1732371031772,-500.0,0.00040996,2]
[343121702,1732371031784,-500.0,0.00040996,2]
[343121703,1732371031793,-500.0,0.00040996,2]
[343121705,1732371031803,-303.83845208,0.00040996,2]
[343121706,1732371031812,-500.0,0.00041,2]
[343121707,1732371031821,-155.41,0.00041096,2]
[343121708,1732371031830,-190.83,0.00041096,2]
[343121709,1732371031840,-550.0,0.00043,2]
[343121710,1732371031849,-634.64947903,0.00045,2]
[343121711,1732371031858,-9.42202325,0.00045,2]
[343121712,1732371031946,-590.57797675,0.00045,2]
[343121713,1732371031956,-212.48,0.00045002,2]
[343121714,1732371031965,-150.99,0.00045002,30]
[343121715,1732371031975,-1649.96,0.00045002,2]
[343121716,1732371031985,-190.83,0.0004589,2]
[343121717,1732371031994,-9092.39,0.00046547,2]
[343121718,1732371032004,-150.49,0.00046604,2]
[343121719,1732371032014,-250.0,0.00046776,120]
[343121720,1732371032024,-303.07934733,0.00046809,2]
[343121721,1732371032074,-196.92065267,0.00046809,2]
[343121722,1732371032084,-248.0,0.0004683,2]
[343121723,1732371032093,-500.0,0.00046839,2]
[343121724,1732371032102,-655.76,0.00046839,2]
[343121725,1732371032111,-2616.11,0.00046883,2]
[343121726,1732371032120,-250.0,0.00046884,120]
[343121727,1732371032131,-650.0,0.00047,2]
[343121728,1732371032141,-159.04,0.00047053,120]
[343121729,1732371032150,-1649.96,0.00047266,2]
[343121731,1732371032160,-200.0,0.00047306,2]
[343121733,1732371032169,-358.3161,0.00047549,2]
[343121734,1732371032179,-818.68,0.0004757,2]
[343121735,1732371032189,-468.54,0.00047571,2]
[343121736,1732371032198,-468.54,0.00047583,2]
[343121737,1732371032207,-969.16,0.00047586,120]
[343121738,1732371032216,-468.54,0.00047596,2]
[343121739,1732371032225,-468.54,0.00047609,2]
[343121740,1732371032238,-468.54,0.00047621,2]
[343121741,1732371032247,-468.54,0.00047634,2]
[343121742,1732371032257,-468.54,0.00047646,2]
[343121743,1732371032267,-468.54,0.00047659,2]
[343121744,1732371032277,-468.54,0.00047671,2]
[343121745,1732371032287,-468.54,0.00047684,2]
[343121746,1732371032296,-468.54,0.00047696,2]
[343121748,1732371032308,-468.54,0.00047709,2]
[343121750,1732371032317,-468.54,0.00047721,2]
[343121752,1732371032326,-99.89305174,0.00047734,2]
[343121754,1732371032337,-368.64694826,0.00047734,2]
[343121756,1732371032346,-23900.0,0.00047739,2]
[343121758,1732371032355,-468.54,0.00047746,2]
[343121760,1732371032364,-1000.0,0.00047752,2]
[343121762,1732371032374,-200.0,0.00047754,2]
[343121764,1732371032383,-468.54,0.00047759,2]
[343121766,1732371032392,-468.54,0.00047771,2]
[343121767,1732371032401,-468.54,0.00047784,2]
[343121768,1732371032410,-468.54,0.00047796,2]
[343121769,1732371032418,-468.54,0.00047809,2]
[343121770,1732371032427,-166.3,0.00047811,2]
[343121771,1732371032437,-2751.0,0.00047876,120]
[343121772,1732371032447,-250.0,0.00048082,120]
[343121773,1732371032456,-150.0,0.00048259,2]
[343121774,1732371032465,-1852.42,0.00048556,120]
[343121775,1732371032475,-655.76,0.00048572,2]
[343121776,1732371032484,-178.35,0.00048606,84]
[343121777,1732371032494,-1565.264,0.00048606,84]
[343121778,1732371032503,-251.07481046,0.000487,2]
[343121779,1732371032512,-2029.0,0.00048711,30]
[343121780,1732371032521,-309.4567,0.000489,2]
[343121781,1732371032532,-12082.8843,0.000489,2]
[343121782,1732371032542,-65705.58719818,0.000489,2]
[343121783,1732371032558,-3545.13313776,0.000489,2]
[343121784,1732371032569,-46301.46445,0.000489,2]
[343121786,1732371037918,-150.0,0.00046964,2]
[343121787,1732371037929,-5071.86391406,0.000489,2]
[343121788,1732371037939,-150.0,0.0004891,2]
[343121789,1732371037949,-2903.38030935,0.00048931,15]
[343121790,1732371037959,-1503.50219138,0.00048931,15]
[343121791,1732371037971,-1239.75251638,0.00048931,15]
[343121792,1732371037981,-504.78216576,0.00048973,7]
[343121793,1732371037991,-159.1514592,0.00048973,2]
[343121794,1732371038002,-159.1466688,0.00048973,2]
[343121795,1732371038012,-159.145072,0.00048973,2]
[343121796,1732371038021,-157.1614472,0.00048973,2]
[343121797,1732371038035,-354.51296194,0.00048973,10]
[343121798,1732371038046,-145.48703806,0.00048973,10]
[343121799,1732371038056,-8606.0,0.00049,120]
[343121800,1732371038067,-700.0,0.00049,2]
[343121801,1732371038077,-18609.42189198,0.00049,2]
[343121802,1732371038101,-77882.19729422,0.00049,2]
[343121803,1732371038204,-36079.17922701,0.00049,2]
[343121804,1732371038216,-17393.83715,0.00049,2]
[343121810,1732371040125,-4830.57652686,0.00049,2]
[343121847,1732371042928,-38402.70982757,0.00049,2]
[343121850,1732371043301,-77.61676242,0.00049,2]
[343121852,1732371043312,-5059.05399719,0.00049,2]
[343121853,1732371043324,-5116.37769559,0.00049,2]
[343121861,1732371046278,-16797.24983711,0.00049,2]
[343121866,1732371046478,-2925.68953262,0.00049,2]
[343121867,1732371046490,-431.55085743,0.00049,2]
[343121868,1732371046499,-500.0,0.00049,2]
[343121869,1732371046509,-1502.622954,0.00049074,28]
[343121870,1732371046520,-178.33,0.00049174,120]
[343121871,1732371046529,-150.49,0.00049232,2]
[343121872,1732371046541,-3294.0,0.00049315,15]
[343121873,1732371046550,-1263.4135,0.000494,2]
[343121874,1732371046559,-217.2932,0.000494,2]
[343121875,1732371046570,-263.8556,0.000494,2]
[343121876,1732371046579,-3842.6394,0.000494,2]
[343121877,1732371046588,-1467.2362795,0.000494,2]
[343121878,1732371046621,-2972.2772205,0.000494,2]
[343121879,1732371046631,-320.35526614,0.00049494,2]
[343121880,1732371046641,-24841.12792808,0.000495,2]
[343121881,1732371046650,-3000.0,0.000495,47]
[343121882,1732371046660,-1649.96,0.00049529,2]
[343121883,1732371046669,-768.4594,0.00049594,2]
[343121884,1732371046678,-821.7738,0.00049594,2]
[343121885,1732371046688,-8793.5674,0.00049594,2]
[343121886,1732371046698,-70290.7559,0.00049594,2]
[343121887,1732371046709,-8603.0961,0.00049594,2]
[343121888,1732371046719,-7938.62698528,0.000496,2]
[343121889,1732371046730,-7947.02951472,0.000496,2]
[343121890,1732371046739,-170.06948319,0.000496,36]
[343121891,1732371046748,-196.52475964,0.000496,120]
[343121892,1732371046757,-171.63015164,0.000496,26]
[343121893,1732371046767,-1000.0,0.00049691,30]
[343121894,1732371046776,-90764.27228886,0.00049692,2]
[343121895,1732371046790,-3912.08527609,0.00049692,2]
[343121896,1732371046802,-5323.64243505,0.00049692,2]
[343121897,1732371046811,-4936.07359095,0.00049692,2]
[343121899,1732371472615,539.30807963,0.0004,60]
[343121900,1732371489096,151.0,0.0003,120]
[343121901,1732371908441,690760.84659162,0.00013,2]
[343121902,1732371908468,40000.0,0.00013,2]
[343121903,1732371908492,1100.0,0.00013,2]
[343121904,1732371908570,20000000.0,0.00013,2]
[343121905,1732371908637,6375345.33234883,0.00013,2]
[343121907,1732371908941,17507.41615625,0.0001,2]
[343121908,1732371926130,600.0,0.000108,2]
[343121913,1732372083176,150.0,0.00013,2]
[343121914,1732372083200,150.0,0.00013,2]
[343121915,1732372083226,150.0,0.00013,2]
[343121916,1732372083252,150.0,0.00013,2]
[343121918,1732372083275,150.0,0.00013,2]
[343121919,1732372083345,2047982.89375703,0.00013,2]
[343121925,1732372121516,150.0,0.00032,90]
[343121926,1732372121582,1775.86145717,0.00032,90]
[343121931,1732372152693,-400.0,0.00037899,2]
[343121932,1732372152714,-12351.52509056,0.000379,2]
[343121933,1732372152736,-500.0,0.00038,30]
[343121934,1732372152757,-500.0,0.00038,30]
[343121935,1732372152782,-738.6645318,0.00038,30]
[343121936,1732372152803,-500.0,0.00038,30]
[343121937,1732372152824,-500.0,0.00038,30]
[343121938,1732372152845,-712.22188775,0.00038,30]
[343121939,1732372152865,-665.37727883,0.00038,30]
[343121940,1732372152886,-500.0,0.00038,30]
[343121941,1732372152906,-541.4576426,0.00038,30]
[343121942,1732372152927,-500.0,0.00038,30]
[343121943,1732372152948,-500.0,0.00038,30]
[343121944,1732372152968,-500.0,0.00038,30]
[343121945,1732372152989,-500.0,0.00038,30]
[343121946,1732372153010,-500.0,0.00038,30]
[343121947,1732372153031,-500.0,0.00038,30]
[343121948,1732372153051,-500.0,0.00038,30]
[343121949,1732372153073,-937.87254628,0.00038,30]
[343121950,1732372153092,-191.8002503,0.0004,30]
[343121951,1732372153114,-560.0,0.00040514,5]
[343121952,1732372153139,-150.15,0.00041096,2]
[343121953,1732372153160,-190.83,0.00041096,2]
[343121954,1732372153182,-313.99,0.00041096,2]
[343121955,1732372153411,-246.11077188,0.00041096,60]
[343121956,1732372174121,-1449.88922812,0.00041096,60]
[343121957,1732372174143,-500.0,0.00041096,2]
[343121958,1732372174164,-692.52663627,0.00041642,2]
[343121959,1732372174187,-269.83375,0.00041843,2]
[343121960,1732372174209,-500.0,0.00042,120]
[343121961,1732372174230,-46.35021561,0.00042,120]
[343121968,1732372214678,200.0,0.00031,2]
[343121969,1732372214701,50.0,0.00031,2]
[343121970,1732372215788,150.0,0.00033,2]
[343121971,1732372215857,150.0,0.00033,2]
[343121972,1732372216992,350.0,0.00035,2]
[343121991,1732372232165,-400.0,0.00037,2]
[343121992,1732372232175,-450.0,0.00039,2]
[343121993,1732372232186,-500.0,0.00041,2]
[343121994,1732372232197,-181.497,0.00041515,2]
[343121995,1732372232207,-12.109457,0.00041743,120]
[343121996,1732372232219,-156.65344668,0.00041743,120]
[343121997,1732372232229,-453.64978439,0.00042,120]
[343121998,1732372232239,-500.0,0.00042,120]
[343121999,1732372232249,-500.0,0.00042,120]
[343122000,1732372232259,-189.69676893,0.00042,120]
[343122001,1732372232271,-310.30323107,0.00042,120]
[343122002,1732372232280,-500.0,0.00042,120]
[343122003,1732372232290,-500.0,0.00042,120]
[343122004,1732372232300,-462.7531184,0.00042,120]
[343122005,1732372232321,-37.2468816,0.00042,120]
[343122006,1732372232334,-500.0,0.00042,120]
[343122007,1732372232345,-333.83911142,0.00042,120]
[343122008,1732372232358,-166.16088858,0.00042,120]
[343122009,1732372232369,-500.0,0.00042,120]
[343122010,1732372232379,-500.0,0.00042,120]
[343122011,1732372232389,-500.0,0.00042,120]
[343122012,1732372232400,-500.0,0.00042,120]
[343122013,1732372232412,-500.0,0.00042,120]
[343122014,1732372232423,-500.0,0.00042,120]
[343122015,1732372232434,-500.0,0.00042,120]
[343122016,1732372232444,-500.0,0.00042,120]
[343122017,1732372232455,-500.0,0.00042,120]
[343122018,1732372232464,-500.0,0.00042,120]
[343122019,1732372232474,-500.0,0.00042,120]
[343122020,1732372232484,-4028.76202042,0.00042,30]
[343122021,1732372232495,-500.0,0.00042102,2]
[343122022,1732372232505,-500.0,0.00042102,2]
[343122023,1732372232515,-500.0,0.00042102,2]
[343122024,1732372232525,-500.0,0.00042102,2]
[343122025,1732372232534,-500.0,0.00042102,2]
[343122026,1732372232544,-500.0,0.00042102,2]
[343122027,1732372232554,-500.0,0.00042102,2]
[343122029,1732372232563,-529.31938475,0.00042102,2]
[343122031,1732372232572,-500.97988608,0.00042102,2]
[343122033,1732372232585,-500.0,0.00042102,2]
[343122034,1732372232595,-500.0,0.00042102,2]
[343122035,1732372232605,-525.30032427,0.00042102,2]
[343122036,1732372232615,-500.0,0.00042102,2]
[343122037,1732372232627,-500.0,0.00042102,2]
[343122038,1732372232637,-500.0,0.00042102,2]
[343122039,1732372232647,-523.37589688,0.00042102,2]
[343122040,1732372232656,-500.0,0.00042102,2]
[343122041,1732372232668,-500.0,0.00042102,2]
[343122042,1732372232678,-500.0,0.00042102,2]
[343122043,1732372232688,-500.0,0.00042102,2]
[343122044,1732372232697,-500.0,0.00042102,2]
[343122045,1732372232707,-500.0,0.00042102,2]
[343122047,1732372232716,-500.0,0.00042102,2]
[343122048,1732372232725,-500.0,0.00042102,2]
[343122050,1732372232734,-500.0,0.00042102,2]
[343122052,1732372232743,-500.0,0.00042102,2]
[343122054,1732372232753,-500.0,0.00042102,2]
[343122056,1732372232762,-2064.21618082,0.00043,2]
[343122058,1732372232771,-550.0,0.00043,2]
[343122060,1732372232781,-2942.75790683,0.000435,2]
[343122062,1732372232790,-957.0,0.00043836,120]
[343122064,1732372232798,-2872.65280578,0.0004462,2]
[343122066,1732372232807,-1457.01,0.00044989,2]
[343122068,1732372232817,-600.0,0.00045,2]
[343122070,1732372232826,-313.99,0.00046143,2]
[343122072,1732372232839,-150.15,0.00046423,2]
[343122074,1732372232848,-150.49,0.00046601,2]
[343122076,1732372232857,-650.0,0.00047,2]
[343122078,1732372232866,-171.9,0.0004707,2]
[343122080,1732372232875,-1457.01,0.00047252,2]
[343122082,1732372232884,-25117.0,0.00047323,2]
[343122084,1732372232894,-153.93,0.00047351,2]
[343122086,1732372232903,-153.93,0.0004739,2]
[343122088,1732372232912,-153.93,0.0004743,2]
[343122090,1732372232921,-269.83375,0.00047456,2]
[343122092,1732372232931,-153.93,0.00047469,2]
[343122094,1732372232940,-153.93,0.00047509,2]
[343122096,1732372232950,-153.93,0.00047548,2]
[343122098,1732372232959,-1000.0,0.00047574,2]
[343122100,1732372232969,-978.17,0.00047575,2]
[343122102,1732372232978,-153.93,0.00047588,2]
[343122104,1732372232987,-200.0,0.00047601,2]
[343122106,1732372232997,-166.3,0.00047695,2]
[343122108,1732372233006,-23900.0,0.00047695,2]
[343122110,1732372233016,-1936.11191399,0.000477,7]
[343122111,1732372233027,-150.0,0.0004773,2]
[343122113,1732372233037,-250.0,0.00047737,120]
[343122115,1732372233048,-250.0,0.00047797,120]
[343122117,1732372233058,-159.04,0.00047937,120]
[343122119,1732372233068,-171.54,0.0004799,10]
[343122121,1732372233077,-2999.80763105,0.00048,117]
[343122123,1732372233089,-1308.05,0.00048021,2]
[343122125,1732372233099,-248.0,0.00048026,2]
[343122127,1732372233109,-500.0,0.00048042,2]
[343122129,1732372233120,-957.5,0.00048044,120]
[343122131,1732372233130,-793.45,0.00048093,2]
[343122133,1732372233140,-178.33,0.00048094,120]
[343122135,1732372233149,-500.0,0.00048239,2]
[343122137,1732372233160,-250.0,0.00048239,120]
[343122139,1732372233169,-4285.0,0.00048299,117]
[343122141,1732372233179,-1821.39997995,0.00048799,2]
[343122143,1732372233189,-1418.321,0.00048799,84]
[343122145,1732372233200,-178.35,0.00048799,84]
[343122147,1732372233210,-2023.1811,0.00048814,2]
[343122148,1732372233219,-500.53435776,0.0004882,7]
[343122151,1732372233230,-165.74,0.00048881,2]
[343122153,1732372233241,-3252.4001,0.000489,2]
[343122155,1732372233251,-2340.8347,0.000489,2]
[343122157,1732372233261,-2100.0,0.000489,17]
[343122159,1732372233271,-700.0,0.00049,2]
[343122161,1732372233281,-1743.5908,0.000491,2]
[343122163,1732372233292,-178.61,0.00049153,2]
[343122165,1732372233303,-2925.6895,0.000492,2]
[343122167,1732372233314,-1596.0,0.000492,2]
[343122169,1732372233324,-3000.0,0.000492,45]
[343122171,1732372233336,-2531.3979,0.00049292,2]
[343122173,1732372233346,-1000.0,0.00049292,2]
[343122175,1732372233355,-510.9471,0.00049292,2]
[343122177,1732372233365,-2244.0,0.00049315,20]
[343122179,1732372233375,-2468.92923693,0.00049392,15]
[343122181,1732372233384,-2613.04227846,0.00049392,15]
[343122183,1732372233394,-1314.79508475,0.00049392,28]
[343122185,1732372233403,-301.58652222,0.00049392,2]
[343122187,1732372233413,-1000.0,0.00049392,2]
[343122189,1732372233423,-1723.4416,0.00049392,2]
[343122191,1732372233433,-491.8685,0.00049392,2]
[343122192,1732372233442,-37934.2973,0.00049392,2]
[343122195,1732372233452,-3931.1536,0.00049392,2]
[343122196,1732372233462,-198.7397,0.00049392,2]
[343122198,1732372233471,-1589.3718,0.00049392,2]
[343122200,1732372233482,-4632.3896,0.00049392,2]
[343122202,1732372233492,-440.0,0.00049392,2]
[343122204,1732372233502,-2500.0,0.00049392,2]
[343122206,1732372233511,-277.4924684,0.00049473,10]
[343122208,1732372233522,-298.39701,0.00049473,10]
[343122210,1732372233533,-1000.0,0.00049491,30]
[343122212,1732372233543,-75940.59702732,0.00049491,2]
[343122214,1732372233553,-1193.98914807,0.00049491,2]
[343122216,1732372233563,-562.18134099,0.00049491,2]
[343122218,1732372233572,-1553.9845,0.00049492,60]
[343122220,1732372233587,-998.6842,0.00049492,2]
[343122222,1732372233598,-145328.21393057,0.00049492,2]
[343122224,1732372233614,-294063.574458,0.00049492,2]
[343122227,1732372233627,-3518.80011442,0.00049492,2]
[343122230,1732372233658,-492.91624567,0.00049314,31]
[343122232,1732372233668,-3645.1878041,0.00049492,2]
[343122235,1732372233680,-130019.520626,0.00049492,2]
[343122238,1732372233702,-500.0,0.00041,2]
[343122240,1732372233712,-76318.32221558,0.00049492,2]
[343122258,1732372237959,-500.0,0.00046942,2]
[343122259,1732372237969,-240.25477619,0.00049492,2]
[343122263,1732372238109,-3482.0,0.00049492,2]
[343122264,1732372238219,-13109.61445089,0.00049492,2]
[343122265,1732372238450,-1221.658503,0.00049492,2]
[343122274,1732372239957,-5574.12335,0.00049492,2]
[343122275,1732372239969,-293.084,0.00049492,2]
[343122276,1732372239981,-693.5,0.00049492,2]
[343122277,1732372240176,-40497.80777125,0.00049492,2]
[343122278,1732372240187,-416.1147,0.00049492,2]
[343122279,1732372240199,-1457.01,0.00049516,2]
[343122280,1732372240208,-188.67065106,0.00049516,60]
[343122281,1732372240218,-1000.0,0.00049591,30]
[343122282,1732372240227,-170.06948319,0.00049592,36]
[343122283,1732372240237,-151.0,0.00049592,120]
[343122284,1732372240247,-151.0,0.00049592,120]
[343122285,1732372240256,-11607.3801,0.00049592,2]
[343122286,1732372240266,-1477.9919,0.00049592,2]
[343122287,1732372240276,-4641.8662,0.00049592,2]
[343122288,1732372240286,-500.0,0.00049592,2]
[343122289,1732372240295,-673.226,0.00049592,2]
[343122290,1732372240304,-100000.0,0.00049592,2]
[343122291,1732372240313,-508.3190042,0.00049592,2]
[343122292,1732372240324,-338.44274969,0.00049592,2]